bitfinex-derivatives/quotes_SOLF0:USTF0_20241021
["timestamp","ask_amount","ask_price","bid_price","bid_amount"]
[1729493296194,4.28,170.68,170.57,5.5136]
[1729493297191,1.234,170.72,170.57,5.5136]
[1729493297397,4.28,170.69,170.57,5.5136]
[1729493297803,7.2101,170.69,170.57,5.5136]
[1729493297995,7.2101,170.69,170.57,1.2336]
[1729493298299,2.9302,170.68,170.64,2.9307]
[1729493300900,2.9302,170.68,170.59,1.2743]
[1729493301207,2.9302,170.68,170.65,2.9307]
[1729493301403,2.9302,170.68,170.59,1.2743]
[1729493301598,2.9302,170.68,170.64,2.9308]
[1729493304501,2.9303,170.67,170.63,2.9309]
[1729493305813,4.28,170.69,170.59,1.2743]
[1729493306012,4.28,170.69,170.58,4.28]
[1729493306312,4.28,170.69,170.57,1.2336]
[1729493306906,2.9308,170.65,170.57,1.2336]
[1729493307103,7.2108,170.65,170.57,1.2336]
[1729493307309,4.28,170.65,170.57,1.2336]
[1729493308111,4.28,170.68,170.58,2.7117557]
[1729493308306,4.28,170.68,170.58,1.2455]
[1729493308712,4.28,170.68,170.65,2.9305]
[1729493310209,1.234,170.72,170.6,4.28]
[1729493310409,4.28,170.71,170.6,4.28]
[1729493311312,7.2096,170.71,170.67,2.9302]
[1729493311510,1.234,170.72,170.6,4.28]
[1729493311705,4.28,170.73,170.61,1.46599646]
[1729493312019,2.87159116,170.77,170.62,2.74235277]
[1729493312220,4.28,170.76,170.63,4.28]
[1729493312419,7.22566331,170.76,170.63,4.28]
[1729493312622,7.22566331,170.76,170.63,5.5749]
[1729493313216,2.9298,170.71,170.63,5.5749]
[1729493313823,2.9298,170.71,170.66,2.9304]
[1729493317523,2.9298,170.71,170.67,2.9303]
[1729493323517,4.1772,170.71,170.67,2.9303]
[1729493329432,1.2474,170.71,170.63,1.2949]
[1729493329635,1.2474,170.71,170.65,2.9305]
[1729493329931,1.2474,170.71,170.63,1.2949]
[1729493330334,2.9301,170.69,170.64,2.9308]
[1729493330633,4.28,170.68,170.64,2.9308]
[1729493334233,7.2102,170.68,170.64,2.9308]
[1729493334434,4.28,170.68,170.57,1.2301]
[1729493334733,2.9307,170.65,170.59,1.46627559]
[1729493334931,2.86344524,170.67,170.58,1.2822]
[1729493336036,2.9309,170.64,170.6,2.9315]
[1729493336236,7.2109,170.64,170.6,2.9315]
[1729493336437,4.28,170.64,170.53,96.76009954]
[1729493336740,2.9312,170.62,170.57,2.9319]
[1729493337031,2.9312,170.62,170.54,2.74867147]
[1729493337032,2.9312,170.62,170.54,1.2822]
[1729493337229,7.2109,170.64,170.57,2.9319]
[1729493337431,7.2109,170.64,170.55,2.95896423]
[1729493337631,7.2109,170.64,170.56,1.46658862]
[1729493337834,7.2109,170.64,170.55,2.95896423]
[1729493337835,7.2109,170.64,170.59,2.9316]
[1729493338030,2.9311,170.63,170.59,2.9316]
[1729493339532,4.28,170.64,170.59,2.9316]
[1729493339729,7.2109,170.64,170.59,2.9316]
[1729493342230,4.28,170.64,170.54,1.2822]
[1729493342434,4.28,170.64,170.57,2.9319]
[1729493343041,2.9313,170.62,170.57,2.9319]
[1729493343335,2.9313,170.62,170.58,2.9318]
[1729493344345,9.51361263,170.7,170.55,3.00043067]
[1729493344550,4.28,170.69,170.56,1.46656177]
[1729493344741,4.28,170.69,170.57,5.74656177]
[1729493344943,2.9303,170.68,170.64,2.9308]
[1729493345437,2.9303,170.68,170.59,2.90421978]
[1729493345642,2.9303,170.67,170.63,2.931]
[1729493350344,7.2101,170.69,170.6,1.2773]
[1729493350649,7.2101,170.69,170.61,1.46631517]
[1729493350837,7.2101,170.69,170.64,2.9307]
[1729493351241,4.28,170.69,170.64,2.9307]
[1729493351446,4.28,170.69,170.6,1.2773]
[1729493351642,4.28,170.69,170.47,63.32]
[1729493351946,2.9313,170.62,170.52,8.39990123]
[1729493352149,4.28,170.61,170.56,2.932]
[1729493352539,4.28,170.61,170.57,2.932]
[1729493353651,2.9318,170.59,170.54,2.9325]
[1729493353953,4.28,170.61,170.52,2.6534]
[1729493354151,4.28,170.61,170.53,1.46693158]
[1729493354449,2.9321,170.57,170.53,2.9327]
[1729493354652,4.28,170.56,170.52,1.3479]
[1729493355051,7.2122,170.56,170.52,1.3479]
[1729493356152,7.2122,170.56,170.52,4.2807]
[1729493356448,4.28,170.56,170.52,1.3479]
[1729493356651,4.28,170.56,170.53,2.9327]
[1729493357352,2.5249,170.63,170.52,1.3479]
[1729493357551,4.28,170.62,170.52,1.3479]
[1729493357849,2.9315,170.6,170.52,1.3479]
[1729493358058,4.28,170.59,170.56,2.9321]
[1729493358354,4.28,170.58,170.56,2.9321]
[1729493359553,7.2119,170.58,170.54,2.9324]
[1729493361256,4.28,170.58,170.54,2.9324]
[1729493361657,4.28,170.58,170.52,4.2808]
[1729493361853,2.9323,170.56,170.52,4.2808]
[1729493362356,2.932,170.57,170.53,2.9327]
[1729493363655,2.9313,170.62,170.57,2.9319]
[1729493363854,4.28,170.61,170.52,1.3479]
[1729493364357,2.9317,170.59,170.55,2.9323]
[1729493365947,2.9319,170.58,170.54,2.9325]
[1729493366564,2.9318,170.59,170.55,2.9322]
[1729493367560,2.932,170.58,170.54,2.9324]
[1729493367855,4.28,170.57,170.52,1.3479]
[1729493368252,4.28,170.57,170.53,2.9326]
[1729493368551,4.28,170.57,170.52,1.3479]
[1729493369353,4.28,170.57,170.54,2.9325]
[1729493371452,2.5249,170.63,170.52,1.3479]
[1729493371659,2.9314,170.61,170.57,2.932]
[1729493371855,4.28,170.62,170.57,2.932]
[1729493372255,2.9314,170.61,170.57,2.932]
[1729493372558,4.28,170.6,170.57,2.932]
[1729493372954,2.9314,170.61,170.56,2.9322]
[1729493373155,4.28,170.59,170.56,2.9322]
[1729493376557,2.9319,170.58,170.54,2.9324]
[1729493377351,4.28,170.59,170.48,1.2337]
[1729493377757,2.9323,170.56,170.51,2.9329]
[1729493377954,4.28,170.55,170.51,2.9329]
[1729493380652,4.28,170.55,170.53,2.9327]
[1729493380863,4.28,170.55,170.48,1.2337]
[1729493381960,4.28,170.55,170.54,2.9325]
[1729493391266,2.9321,170.57,170.54,2.9325]
[1729493391465,4.28,170.56,170.5,1.46698249]
[1729493391659,7.2122,170.56,170.53,2.9327]
[1729493396762,4.28,170.56,170.48,1.2337]
[1729493396962,4.28,170.56,170.49,1.46700643]
[1729493397267,4.28,170.56,170.48,1.2337]
[1729493397466,4.28,170.56,170.53,2.9327]
[1729493397865,7.2124,170.56,170.52,2.9329]
[1729493398060,4.28,170.56,170.48,1.2337]
[1729493398366,4.28,170.56,170.49,1.46701266]
[1729493398567,2.9328,170.53,170.49,2.9333]
[1729493399267,4.28,170.52,170.47,1.2308]
[1729493399466,4.28,170.52,170.5,2.9332]
[1729493400974,7.2129,170.52,170.49,2.9334]
[1729493401163,7.2129,170.52,170.44,1.3463]
[1729493401364,7.2129,170.52,170.45,1.4673329]
[1729493401568,4.28,170.52,170.44,1.3463]
[1729493401764,4.28,170.52,170.47,2.9336]
[1729493401765,2.9331,170.51,170.47,2.9336]
[1729493402966,2.9331,170.51,170.44,1.3463]
[1729493403170,2.9331,170.51,170.48,2.9336]
[1729493403666,4.28,170.52,170.46,2.9339]
[1729493403864,4.28,170.52,170.44,1.3463]
[1729493404265,2.9337,170.48,170.44,2.9341]
[1729493404463,4.28,170.48,170.4,1.2812]
[1729493404768,2.934,170.46,170.42,2.9345]
[1729493404964,4.28,170.48,170.4,1.2812]
[1729493405171,4.28,170.48,170.31,1.2307]
[1729493405172,1.2506,170.47,170.31,1.2307]
[1729493405370,2.9344,170.44,170.39,2.935]
[1729493405565,4.28,170.43,170.39,2.935]
[1729493406368,7.2146,170.43,170.39,2.935]
[1729493406572,4.28,170.43,170.32,2.6176]
[1729493406872,4.28,170.43,170.33,1.46822988]
[1729493407170,4.28,170.43,170.32,2.6176]
[1729493407369,4.28,170.43,170.33,1.46821075]
[1729493407574,4.28,170.43,170.32,2.6176]
[1729493407775,4.28,170.43,170.33,1.46825771]
[1729493407975,2.9348,170.41,170.37,2.9355]
[1729493408372,4.28,170.43,170.32,2.6176]
[1729493408876,2.9352,170.39,170.34,2.9359]
[1729493409078,4.28,170.38,170.34,2.9359]
[1729493411571,4.28,170.38,170.36,2.9356]
[1729493411978,4.28,170.38,170.32,2.6176]
[1729493412182,4.28,170.38,170.33,2.936]
[1729493412377,4.28,170.38,170.32,2.6176]
[1729493412680,2.91624719,170.46,170.32,2.6176]
[1729493412681,4.28,170.41,170.38,2.9353]
[1729493413778,4.28,170.41,170.32,6.8976]
[1729493413987,2.9349,170.41,170.36,2.9355]
[1729493414180,4.28,170.4,170.36,2.9355]
[1729493415684,7.2151,170.4,170.32,2.6176]
[1729493415888,4.28,170.4,170.35,2.9358]
[1729493416986,2.9352,170.39,170.35,2.9358]
[1729493418483,7.215,170.4,170.35,2.9358]
[1729493421494,2.9353,170.38,170.33,2.936]
[1729493421892,2.9353,170.38,170.32,1.2812]
[1729493423092,2.9353,170.38,170.34,2.9359]
[1729493423689,1.2696,170.39,170.32,2.9362]
[1729493423893,2.6036,170.39,170.32,2.9362]
[1729493424798,2.9355,170.37,170.32,2.9362]
[1729493425097,4.28,170.36,170.32,2.9362]
[1729493425297,7.2156,170.36,170.31,2.9365]
[1729493426294,2.9359,170.35,170.31,2.9365]
[1729493426890,4.28,170.36,170.31,2.9365]
[1729493427092,7.2157,170.36,170.31,2.9365]
[1729493427293,4.28,170.36,170.33,2.9361]
[1729493429596,4.28,170.36,170.27,1.3439]
[1729493429792,4.28,170.36,170.32,2.9362]
[1729493430900,7.2157,170.36,170.32,2.9362]
[1729493434605,4.28,170.36,170.27,4.30120139]
[1729493434809,4.28,170.36,170.33,2.9361]
[1729493435304,4.28,170.36,170.32,2.9363]
[1729493435710,7.2157,170.36,170.32,2.9363]
[1729493442416,4.28,170.36,170.27,1.3439]
[1729493442609,2.9358,170.35,170.31,2.9364]
[1729493445116,4.28,170.36,170.27,1.3439]
[1729493445811,2.9359,170.35,170.31,2.9365]
[1729493453126,2.9359,170.35,170.27,1.3439]
[1729493453421,2.9359,170.35,170.3,2.9366]
[1729493456723,2.9359,170.35,170.31,2.9365]
[1729493456919,2.9359,170.35,170.27,1.3439]
[1729493457320,4.28,170.36,170.27,1.3439]
[1729493457627,2.936,170.34,170.27,1.3439]
[1729493458523,4.28,170.33,170.3,2.9366]
[1729493462026,2.936,170.34,170.3,2.9366]
[1729493462219,4.28,170.33,170.32,2.9363]
[1729493462531,4.28,170.35,170.32,2.9363]
[1729493462730,4.28,170.35,170.28,1.2554]
[1729493462932,4.28,170.35,170.33,2.9361]
[1729493463233,4.28,170.36,170.29,1.3233]
[1729493463423,4.28,170.36,170.33,2.936]
[1729493464223,4.28,170.36,170.31,2.9365]
[1729493464428,4.28,170.36,170.29,1.3233]
[1729493464829,4.28,170.36,170.34,2.9359]
[1729493465837,4.28,170.36,170.29,1.3233]
[1729493466233,4.28,170.36,170.35,2.9358]
[1729493468331,66.3748,170.41,170.38,2.9353]
[1729493468634,4.28,170.4,170.38,2.9353]
[1729493469037,4.28,170.39,170.38,2.9353]
[1729493470235,4.28,170.39,170.37,2.9355]
[1729493470440,4.28,170.39,170.31,4.28]
[1729493470742,4.28,170.39,170.32,1.46847586]
[1729493471038,7.2152,170.39,170.34,2.936]
[1729493471537,2.9356,170.36,170.32,2.9363]
[1729493471838,4.28,170.35,170.29,1.3233]
[1729493472233,4.28,170.35,170.31,2.9364]
[1729493473537,7.2159,170.35,170.31,2.9364]
[1729493474342,2.936,170.34,170.3,2.9367]
[1729493474542,4.28,170.35,170.31,1.46879995]
[1729493474745,4.28,170.35,170.29,1.3233]
[1729493474939,4.28,170.35,170.3,1.46880156]
[1729493475140,4.28,170.35,170.31,1.46880156]
[1729493475440,4.28,170.35,170.29,1.3233]
[1729493475737,4.28,170.35,170.3,1.46880156]
[1729493475937,7.2159,170.35,170.31,4.40520156]
[1729493476142,7.2159,170.35,170.31,2.9364]
[1729493477750,4.28,170.35,170.29,2.9368]
[1729493478244,4.28,170.35,170.27,1.3439]
[1729493478549,4.28,170.35,170.28,4.40587499]
[1729493478746,4.28,170.35,170.29,1.46897499]
[1729493478947,7.2159,170.35,170.3,2.9365]
[1729493479845,4.28,170.35,170.31,2.9364]
[1729493480240,4.28,170.34,170.27,1.3439]
[1729493480447,4.28,170.35,170.32,2.9362]
[1729493484056,4.28,170.35,170.33,2.9361]
[1729493484852,4.28,170.36,170.34,2.9358]
[1729493485055,4.28,170.36,170.29,1.3076]
[1729493485255,4.28,170.36,170.3,1.46860498]
[1729493485552,4.28,170.36,170.31,1.46860498]
[1729493485748,4.28,170.36,170.32,1.46860498]
[1729493485948,4.28,170.36,170.35,2.9358]
[1729493486349,4.28,170.36,170.35,4.40440061]
[1729493487953,4.28,170.36,170.35,2.9358]
[1729493488151,4.28,170.36,170.35,4.4043991]
[1729493488550,2.9351,170.4,170.35,1.4685991]
[1729493488755,4.28,170.39,170.36,2.9356]
[1729493489545,4.28,170.39,170.37,2.9353]
[1729493489756,4.28,170.39,170.29,2.5451]
[1729493489956,2.9353,170.38,170.32,2.9362]
[1729493490257,4.28,170.39,170.33,1.46856816]
[1729493490451,4.28,170.39,170.34,1.46856816]
[1729493490653,2.9356,170.37,170.32,2.9363]
[1729493490958,2.9356,170.37,170.33,1.4686675]
[1729493491150,2.9356,170.37,170.34,1.4686675]
[1729493491355,2.9356,170.37,170.33,2.936]
[1729493491559,2.9359,170.35,170.29,1.3076]
[1729493491754,7.2159,170.35,170.3,1.46877783]
[1729493491952,7.2159,170.35,170.29,1.3076]
[1729493492256,7.2159,170.35,170.31,2.9364]
[1729493492454,7.2159,170.35,170.32,1.46881305]
[1729493492659,4.28,170.35,170.29,1.3076]
[1729493492858,7.2158,170.35,170.31,2.9363]
[1729493493055,7.2158,170.35,170.32,1.46880232]
[1729493493359,7.2158,170.35,170.33,1.46880232]
[1729493493557,7.2158,170.35,170.29,1.3076]
[1729493493757,7.2158,170.35,170.3,1.46875878]
[1729493493953,7.2158,170.35,170.31,1.46875878]
[1729493494161,7.2158,170.35,170.32,1.46875878]
[1729493494357,7.2158,170.35,170.33,1.46875878]
[1729493494557,7.2158,170.35,170.31,2.9364]
[1729493494861,7.2158,170.35,170.32,1.46876139]
[1729493495063,7.2158,170.35,170.33,1.46876139]
[1729493495362,7.2158,170.35,170.31,2.9364]
[1729493495655,7.2158,170.35,170.32,1.468763]
[1729493495853,7.2158,170.35,170.33,1.468763]
[1729493496156,7.2158,170.35,170.31,2.9364]
[1729493496353,7.2158,170.35,170.32,1.46881102]
[1729493496554,7.2158,170.35,170.31,2.9364]
[1729493496759,7.2158,170.35,170.32,1.46880786]
[1729493497060,7.2158,170.35,170.31,2.9364]
[1729493497262,7.2158,170.35,170.32,1.46879978]
[1729493497457,7.2158,170.35,170.31,2.9364]
[1729493497763,7.2158,170.35,170.32,1.46879978]
[1729493497963,7.2158,170.35,170.33,1.46879978]
[1729493498164,7.2158,170.35,170.32,2.9363]
[1729493498465,7.2158,170.35,170.33,1.46876295]
[1729493498660,4.28,170.35,170.33,2.9361]
[1729493499369,4.28,170.35,170.28,2.9369]
[1729493499663,5.5844,170.35,170.29,1.46888794]
[1729493499864,1.3455,170.34,170.3,1.46888794]
[1729493500057,1.3455,170.34,170.27,1.3439]
[1729493500058,2.9364,170.32,170.27,1.3439]
[1729493500254,4.28,170.31,170.28,1.46913179]
[1729493500459,4.28,170.31,170.27,1.3439]
[1729493500658,7.2165,170.31,170.26,2.9372]
[1729493500860,7.2165,170.31,170.27,1.46918136]
[1729493501062,7.2165,170.31,170.26,2.9372]
[1729493501256,2.9367,170.3,170.27,1.46918538]
[1729493501463,4.28,170.31,170.22,1.2653]
[1729493501764,4.28,170.31,170.23,1.46925185]
[1729493501964,4.28,170.31,170.24,1.46925185]
[1729493502265,4.28,170.31,170.22,1.2653]
[1729493502266,4.28,170.31,170.25,1.46925185]
[1729493502459,2.9371,170.28,170.26,1.46925185]
[1729493502665,4.26,170.27,170.23,2.9379]
[1729493503062,7.1972,170.27,170.23,2.9379]
[1729493503261,7.1972,170.27,170.22,4.2033]
[1729493504256,2.9374,170.26,170.22,4.2033]
[1729493504462,4.26,170.27,170.2,2.9383]
[1729493504760,2.9378,170.24,170.17,1.3168]
[1729493504967,4.28,170.23,170.2,2.9383]
[1729493505155,4.28,170.23,170.17,1.3168]
[1729493508265,4.28,170.23,170.2,2.9383]
[1729493508773,4.28,170.23,170.18,2.9386]
[1729493509077,4.28,170.23,170.17,1.3168]
[1729493509570,4.28,170.23,170.21,2.9382]
[1729493511071,4.28,170.23,170.17,1.3168]
[1729493511673,4.28,170.23,170.2,2.9382]
[1729493512269,4.28,170.23,170.21,2.9382]
[1729493513270,2.097,170.34,170.17,1.3168]
[1729493513476,4.28,170.33,170.17,1.3168]
[1729493513776,2.9373,170.27,170.22,2.9379]
[1729493513977,4.28,170.26,170.22,2.9379]
[1729493515369,4.28,170.26,170.17,1.3168]
[1729493516275,7.2174,170.26,170.22,2.938]
[1729493517977,4.28,170.26,170.18,2.96280447]
[1729493518469,2.9372,170.28,170.18,2.96280447]
[1729493518674,4.28,170.27,170.19,1.2694]
[1729493519676,4.28,170.27,170.24,2.9376]
[1729493523274,4.28,170.27,170.19,1.2694]
[1729493523977,4.28,170.27,170.24,2.9376]
[1729493524473,2.9376,170.25,170.22,2.9381]
[1729493524667,4.28,170.27,170.17,1.3168]
[1729493525076,2.9377,170.24,170.17,1.3168]
[1729493525277,5.6266,170.27,170.17,1.3168]
[1729493525867,2.9377,170.25,170.21,2.9382]
[1729493529974,5.6266,170.27,170.17,1.3168]
[1729493530174,4.28,170.27,170.18,2.96197701]
[1729493530681,4.28,170.27,170.24,2.9376]
[1729493530883,1.2284,170.33,170.17,5.5968]
[1729493531087,2.9366,170.31,170.26,2.9372]
[1729493531582,1.2284,170.33,170.2,2.86968161]
[1729493531583,4.26,170.3,170.21,4.26]
[1729493531774,4.26,170.3,170.17,5.5768]
[1729493531972,1.2979,170.29,170.17,5.5768]
[1729493532176,2.9377,170.25,170.21,2.9382]
[1729493532376,4.26,170.24,170.17,5.5768]
[1729493532780,4.26,170.24,170.21,2.9381]
[1729493534674,4.26,170.24,170.22,2.938]
[1729493539589,2.938,170.23,170.19,2.9384]
[1729493539782,2.938,170.23,170.14,1.3368]
[1729493539783,2.938,170.23,170.14,2.6144]
[1729493540280,2.9383,170.21,170.14,2.6144]
[1729493540484,4.26,170.24,170.14,2.6144]
[1729493540876,2.9382,170.22,170.18,2.9386]
[1729493543886,4.26,170.24,170.13,1.2776]
[1729493544087,1.2993,170.27,170.13,1.2776]
[1729493544289,7.2174,170.26,170.21,2.9381]
[1729493544687,4.28,170.26,170.21,2.9381]
[1729493544896,2.9378,170.24,170.15,4.28]
[1729493545793,2.9376,170.25,170.21,2.9382]
[1729493546482,2.9379,170.23,170.19,2.9384]
[1729493546683,4.28,170.22,170.19,2.9384]
[1729493546889,4.28,170.22,170.14,1.4698569]
[1729493547193,4.28,170.22,170.13,1.2776]
[1729493547394,7.2182,170.22,170.18,2.9386]
[1729493548497,2.9383,170.21,170.18,2.9386]
[1729493549600,7.2181,170.22,170.18,2.9386]
[1729493550204,2.9383,170.21,170.15,2.9391]
[1729493550394,4.28,170.22,170.13,1.2776]
[1729493550995,2.9384,170.21,170.13,1.2776]
[1729493551201,4.28,170.22,170.13,1.2776]
[1729493551598,2.9388,170.18,170.14,2.9394]
[1729493551906,4.28,170.17,170.14,2.9394]
[1729493553900,4.28,170.17,170.13,1.2776]
[1729493554909,4.28,170.17,170.16,2.9391]
[1729493555908,4.28,170.17,170.15,2.9392]
[1729493556105,4.28,170.17,169.94,29.04561392]
[1729493556315,4.28,170.17,170.03,9.6857622]
[1729493556506,7.219,170.17,170.04,1.4703622]
[1729493556807,7.219,170.17,170.05,1.4703622]
[1729493557003,7.219,170.17,170.06,1.4703622]
[1729493557202,7.219,170.17,170.07,1.4703622]
[1729493557203,4.28,170.17,170.07,1.4703622]
[1729493557411,2.9391,170.16,170.08,1.4703622]
[1729493557612,4.28,170.17,170.09,1.2237]
[1729493557802,4.28,170.17,170.13,2.9395]
[1729493558910,7.2191,170.17,170.13,2.9395]
[1729493559810,2.9391,170.16,170.13,2.9395]
[1729493561012,2.9391,170.16,170.12,2.9398]
[1729493567719,2.9391,170.16,170.09,1.2237]
[1729493567916,2.9391,170.16,170.13,2.9396]
[1729493568412,4.28,170.18,170.15,2.9392]
[1729493568923,4.28,170.18,170.13,2.9395]
[1729493569715,4.28,170.18,170.09,4.21641977]
[1729493569916,4.28,170.18,170.1,2.71793494]
[1729493570110,4.28,170.18,170.11,1.47023494]
[1729493570315,4.28,170.18,170.16,2.939]
[1729493570715,4.28,170.18,170.17,2.9388]
[1729493571620,4.28,170.18,170.16,2.939]
[1729493571815,4.28,170.18,170.11,1.2484]
[1729493572016,4.28,170.18,170.15,2.9391]
[1729493572419,4.28,170.18,170.09,1.2237]
[1729493572624,4.28,170.18,170.1,1.47018062]
[1729493572815,4.28,170.18,170.11,1.47018062]
[1729493573015,4.28,170.18,170.09,1.2237]
[1729493573016,7.2189,170.18,170.12,1.47027857]
[1729493573217,7.2189,170.18,170.14,2.9393]
[1729493575724,4.28,170.18,170.15,2.9392]
[1729493576318,4.28,170.18,170.12,2.9397]
[1729493576522,4.28,170.18,170.09,1.2237]
[1729493577024,2.939,170.17,170.13,2.9395]
[1729493577220,2.939,170.17,170.09,1.2237]
[1729493577422,2.939,170.17,170.1,1.4705213]
[1729493577726,2.939,170.17,170.09,1.2237]
[1729493578022,7.2188,170.18,170.14,2.9394]
[1729493580521,4.28,170.18,170.09,1.2237]
[1729493580728,4.28,170.18,170.01,103.8663969]
[1729493581026,7.2376091,170.18,170.02,9.49098507]
[1729493581212,7.2376091,170.18,170.03,1.47068507]
[1729493581417,2.9398,170.13,170.09,2.9402]
[1729493581626,4.28,170.12,170.02,8.0203]
[1729493581823,4.28,170.11,170.03,1.47080091]
[1729493582125,4.28,170.11,170.09,2.9401]
[1729493585727,4.28,170.11,170.03,1.47085912]
[1729493586025,4.28,170.11,170.04,1.47094139]
[1729493586230,2.9402,170.1,170.06,2.9407]
[1729493586415,3.01349053,170.17,170.02,3.7403]
[1729493586724,4.28,170.16,170.03,1.47098501]
[1729493587020,2.9396,170.13,170.09,2.9402]
[1729493587225,6.8809,170.12,169.96,2.95188724]
[1729493587420,6.8809,170.12,169.99,1.34]
[1729493587627,2.9405,170.08,170.03,2.9412]
[1729493587828,4.28,170.07,170.03,2.9412]
[1729493588324,4.28,170.07,169.98,1.34]
[1729493588624,4.28,170.07,169.98,2.604]
[1729493588822,4.28,170.07,169.99,1.47136172]
[1729493589127,4.28,170.07,170.03,2.9412]
[1729493589922,4.28,170.07,169.98,2.604]
[1729493590124,4.28,170.07,169.99,1.47126743]
[1729493590330,4.28,170.07,169.98,2.604]
[1729493590626,4.28,170.07,169.99,1.47123414]
[1729493590928,4.28,170.07,170.0,1.47123414]
[1729493591130,4.28,170.07,169.99,1.47129565]
[1729493591329,4.28,170.07,169.98,2.604]
[1729493591519,2.9409,170.06,169.98,2.604]
[1729493592029,2.9409,170.06,170.01,2.9416]
[1729493592730,4.28,170.07,169.98,2.604]
[1729493592927,4.36,170.08,169.99,1.47137743]
[1729493593230,4.36,170.08,170.0,1.47137743]
[1729493593431,4.36,170.08,170.05,2.9409]
[1729493593917,4.36,170.08,170.0,1.47114762]
[1729493594123,4.36,170.08,169.99,4.36]
[1729493594523,4.36,170.08,170.0,1.47116347]
[1729493594718,4.36,170.08,170.05,2.9409]
[1729493597933,4.36,170.08,169.99,4.36]
[1729493598128,4.36,170.08,170.06,2.9407]
[1729493598335,4.36,170.08,169.99,4.36]
[1729493598727,4.36,170.08,170.05,2.941]
[1729493600636,2.9407,170.07,170.03,2.9413]
[1729493600834,4.36,170.08,169.98,2.604]
[1729493601431,2.941,170.06,170.01,2.9417]
[1729493601633,4.36,170.08,169.98,2.604]
[1729493602737,2.9408,170.06,170.02,2.9414]
[1729493603238,4.36,170.08,169.98,2.604]
[1729493604039,4.36,170.08,169.98,1.34]
[1729493604641,2.9408,170.06,170.02,2.9414]
[1729493604938,4.36,170.08,169.98,1.34]
[1729493605540,2.941,170.05,170.01,2.9417]
[1729493605739,4.36,170.04,170.01,2.9417]
[1729493606129,4.36,170.04,169.98,1.34]
[1729493606536,4.36,170.04,169.94,5.6896]
[1729493606733,4.36,170.04,169.94,6.9848]
[1729493607937,2.9414,170.03,169.99,2.9419]
[1729493609843,4.36,170.04,169.98,2.9421]
[1729493609844,2.9416,170.02,169.98,2.9421]
[1729493611140,1.3008,170.03,169.94,1.2952]
[1729493611540,5.6121775,170.03,169.89,4.36]
[1729493611733,2.6164,170.03,169.89,8.59451248]
[1729493612143,2.9424,169.98,169.93,2.943]
[1729493612332,4.36,169.97,169.89,1.3509]
[1729493612935,4.36,169.97,169.94,2.9428]
[1729493614236,4.36,169.97,169.96,2.9426]
[1729493614442,2.93559995,170.02,169.89,2.8227611]
[1729493614644,4.38,170.01,169.89,2.8227611]
[1729493614847,4.38,170.01,169.9,1.4718611]
[1729493615841,2.9419,170.0,169.96,2.9424]
[1729493622044,4.38,170.01,169.89,4.14632182]
[1729493622245,4.38,170.01,169.89,2.6745]
[1729493622445,4.38,170.01,169.89,4.14634315]
[1729493623150,4.38,170.01,169.98,2.9421]